[Event "Early-Titled-Tuesday-Blitz-March-12-2024"]
[Site "Chess.com"]
[Date "2024.03.12"]
[Round "8"]
[White "Let_it_be_1"]
[Black "Kirill_Klukin"]
[Result "1/2-1/2"]
[WhiteElo "2632"]
[BlackElo "2805"]
[TimeControl "180+1"]
[EndTime "9:27:55 PDT"]
[Termination "Game drawn - insufficient material"]

1. e4 {[%clk 0:02:58.6]} 1... c5 {[%clk 0:03:00.1]} 2. Nf3 {[%clk 0:02:58.1]}
2... Nc6 {[%clk 0:03:00.8]} 3. d4 {[%clk 0:02:57.3]} 3... cxd4 {[%clk
0:03:01.7]} 4. Nxd4 {[%clk 0:02:57.5]} 4... e5 {[%clk 0:03:02.5]} 5. Nb5 {[%clk
0:02:57.3]} 5... d6 {[%clk 0:03:02.7]} 6. Bc4 {[%clk 0:02:57.6]} 6... Be7 {[%clk
0:02:59.7]} 7. O-O {[%clk 0:02:57]} 7... Nf6 {[%clk 0:02:58.8]} 8. Bg5 {[%clk
0:02:56.7]} 8... Nxe4 {[%clk 0:02:14.6]} 9. Bxe7 {[%clk 0:02:48.3]} 9... Qxe7
{[%clk 0:02:14.7]} 10. N1c3 {[%clk 0:02:07.6]} 10... Nxc3 {[%clk 0:02:12.1]} 11.
Nxd6+ {[%clk 0:02:05.2]} 11... Kf8 {[%clk 0:02:12.4]} 12. bxc3 {[%clk
0:02:04.8]} 12... Be6 {[%clk 0:01:56.4]} 13. Bxe6 {[%clk 0:02:00.5]} 13... Rd8
{[%clk 0:01:50.5]} 14. Bxf7 {[%clk 0:01:41.2]} 14... Qxd6 {[%clk 0:01:32.9]} 15.
Qf3 {[%clk 0:01:40.5]} 15... Qf6 {[%clk 0:01:27.8]} 16. Bd5 {[%clk 0:01:39.9]}
16... Qxf3 {[%clk 0:01:26.9]} 17. Bxf3 {[%clk 0:01:39.7]} 17... Rd6 {[%clk
0:01:20.2]} 18. Rfd1 {[%clk 0:01:14.9]} 18... Ke7 {[%clk 0:01:17.9]} 19. Rxd6
{[%clk 0:01:15]} 19... Kxd6 {[%clk 0:01:18.8]} 20. Rd1+ {[%clk 0:01:14.2]} 20...
Kc7 {[%clk 0:01:17.6]} 21. Kf1 {[%clk 0:01:13.4]} 21... b6 {[%clk 0:01:08.5]}
22. Ke2 {[%clk 0:01:12]} 22... Rf8 {[%clk 0:01:05.8]} 23. Rd5 {[%clk 0:00:56.7]}
23... Rd8 {[%clk 0:00:55.3]} 24. Ke3 {[%clk 0:00:46.1]} 24... Rxd5 {[%clk
0:00:52.6]} 25. Bxd5 {[%clk 0:00:46.2]} 25... Ne7 {[%clk 0:00:53.5]} 26. Ke4
{[%clk 0:00:41.5]} 26... Kd6 {[%clk 0:00:53.1]} 27. c4 {[%clk 0:00:41.8]} 27...
Ng6 {[%clk 0:00:45.4]} 28. g3 {[%clk 0:00:40.6]} 28... Nf8 {[%clk 0:00:45.6]}
29. h4 {[%clk 0:00:35.9]} 29... Nd7 {[%clk 0:00:45.6]} 30. Kf5 {[%clk
0:00:34.8]} 30... g6+ {[%clk 0:00:13.4]} 31. Kg5 {[%clk 0:00:34.8]} 31... Ke7
{[%clk 0:00:14.1]} 32. h5 {[%clk 0:00:29.1]} 32... gxh5 {[%clk 0:00:11.3]} 33.
Kxh5 {[%clk 0:00:29.4]} 33... Nf6+ {[%clk 0:00:09.4]} 34. Kh6 {[%clk 0:00:26.7]}
34... Ng4+ {[%clk 0:00:09.6]} 35. Kxh7 {[%clk 0:00:27]} 35... Nxf2 {[%clk
0:00:10.2]} 36. Bf3 {[%clk 0:00:25.4]} 36... Kf6 {[%clk 0:00:08.6]} 37. Kh6
{[%clk 0:00:23.8]} 37... e4 {[%clk 0:00:09.1]} 38. Be2 {[%clk 0:00:24]} 38... e3
{[%clk 0:00:05.5]} 39. g4 {[%clk 0:00:23.9]} 39... Ne4 {[%clk 0:00:05.6]} 40. a4
{[%clk 0:00:20.5]} 40... Ng5 {[%clk 0:00:05.7]} 41. Bd3 {[%clk 0:00:20.5]} 41...
Ne6 {[%clk 0:00:05.4]} 42. Be2 {[%clk 0:00:18.1]} 42... Nf4 {[%clk 0:00:03.6]}
43. g5+ {[%clk 0:00:17.8]} 43... Kf5 {[%clk 0:00:04.1]} 44. Bf1 {[%clk
0:00:16.3]} 44... Kg4 {[%clk 0:00:01.8]} 45. g6 {[%clk 0:00:16]} 45... Nxg6
{[%clk 0:00:02.2]} 46. Kxg6 {[%clk 0:00:16.2]} 46... Kf3 {[%clk 0:00:02.8]} 47.
Kf5 {[%clk 0:00:16.2]} 47... Kf2 {[%clk 0:00:02.3]} 48. Bd3 {[%clk 0:00:16.1]}
48... e2 {[%clk 0:00:02.6]} 49. Bxe2 {[%clk 0:00:15.6]} 49... Kxe2 {[%clk
0:00:03.5]} 50. Ke4 {[%clk 0:00:14.5]} 50... Kd2 {[%clk 0:00:04.1]} 51. Kd5
{[%clk 0:00:14.3]} 51... Kxc2 {[%clk 0:00:04.6]} 52. Kc6 {[%clk 0:00:14.4]}
52... Kb3 {[%clk 0:00:05.1]} 53. Kb5 {[%clk 0:00:12.7]} 53... Ka3 {[%clk
0:00:04.2]} 54. a5 {[%clk 0:00:12.3]} 54... Kb3 {[%clk 0:00:04.6]} 55. c5 {[%clk
0:00:03.1]} 55... bxc5 {[%clk 0:00:04.4]} 56. Kxc5 {[%clk 0:00:02.8]} 56... Ka4
{[%clk 0:00:05.2]} 57. Kc4 {[%clk 0:00:03.2]} 57... Kxa5 {[%clk 0:00:05.7]} 58.
Kb3 {[%clk 0:00:03.9]} 58... Kb5 {[%clk 0:00:06.6]} 59. Ka2 {[%clk 0:00:04.6]}
59... Kb6 {[%clk 0:00:07.5]} 60. Ka1 {[%clk 0:00:05.3]} 60... Ka6 {[%clk
0:00:08.4]} 61. Ka2 {[%clk 0:00:06.1]} 61... Ka5 {[%clk 0:00:09]} 62. Ka1 {[%clk
0:00:06.8]} 62... Kb5 {[%clk 0:00:09.9]} 63. Ka2 {[%clk 0:00:07.5]} 63... a5
{[%clk 0:00:10.8]} 64. Ka1 {[%clk 0:00:08]} 64... Ka4 {[%clk 0:00:11.4]} 65. Ka2
{[%clk 0:00:08.7]} 65... Kb4 {[%clk 0:00:11.9]} 66. Ka1 {[%clk 0:00:09.2]} 66...
Kc3 {[%clk 0:00:12.8]} 67. Ka2 {[%clk 0:00:09.7]} 67... Kc2 {[%clk 0:00:13.7]}
68. Ka1 {[%clk 0:00:10.2]} 68... Kc1 {[%clk 0:00:14.1]} 69. Ka2 {[%clk
0:00:10.7]} 69... Kc2 {[%clk 0:00:15]} 70. Ka3 {[%clk 0:00:11.3]} 70... Kc3
{[%clk 0:00:15.9]} 71. Ka4 {[%clk 0:00:12]} 71... Kc4 {[%clk 0:00:16.8]} 72.
Kxa5 {[%clk 0:00:12.7]} 1/2-1/2

[Event "Early-Titled-Tuesday-Blitz-March-12-2024"]
[Site "Chess.com"]
[Date "2024.03.12"]
[Round "8"]
[White "DamianoLew95"]
[Black "Ginger_GM"]
[Result "1-0"]
[WhiteElo "2754"]
[BlackElo "2585"]
[TimeControl "180+1"]
[EndTime "9:28:00 PDT"]
[Termination "DamianoLew95 won on time"]

1. e4 {[%clk 0:02:57.1]} 1... c5 {[%clk 0:02:57.1]} 2. Nf3 {[%clk 0:02:53.7]}
2... d6 {[%clk 0:02:57.2]} 3. Bb5+ {[%clk 0:02:53.3]} 3... Nc6 {[%clk 0:02:57]}
4. O-O {[%clk 0:02:49.4]} 4... Bd7 {[%clk 0:02:56.4]} 5. c3 {[%clk 0:02:49.2]}
5... Nf6 {[%clk 0:02:51.8]} 6. Re1 {[%clk 0:02:49.3]} 6... a6 {[%clk 0:02:51.7]}
7. Bxc6 {[%clk 0:02:47.9]} 7... Bxc6 {[%clk 0:02:51.4]} 8. d4 {[%clk 0:02:48.2]}
8... Bxe4 {[%clk 0:02:44.1]} 9. Bg5 {[%clk 0:02:47.8]} 9... Bd5 {[%clk
0:02:36.8]} 10. Nbd2 {[%clk 0:02:31.1]} 10... cxd4 {[%clk 0:02:34.2]} 11. Nxd4
{[%clk 0:02:24.4]} 11... e6 {[%clk 0:02:21.6]} 12. Qe2 {[%clk 0:01:42.5]} 12...
Be7 {[%clk 0:02:09.3]} 13. c4 {[%clk 0:01:35.9]} 13... Bc6 {[%clk 0:02:08.8]}
14. Nf5 {[%clk 0:01:24.2]} 14... exf5 {[%clk 0:02:01.5]} 15. Bxf6 {[%clk
0:01:24.5]} 15... gxf6 {[%clk 0:02:01.4]} 16. Qh5 {[%clk 0:01:24.4]} 16... Qd7
{[%clk 0:01:34]} 17. Qe2 {[%clk 0:01:23.5]} 17... Kf8 {[%clk 0:01:25.4]} 18. Qh5
{[%clk 0:01:22.6]} 18... h6 {[%clk 0:01:08]} 19. Nf1 {[%clk 0:01:18.8]} 19... f4
{[%clk 0:00:59.2]} 20. Rad1 {[%clk 0:01:13]} 20... Re8 {[%clk 0:00:57.3]} 21.
Rd4 {[%clk 0:01:10.3]} 21... Bd8 {[%clk 0:00:49.7]} 22. Red1 {[%clk 0:01:07.4]}
22... Re5 {[%clk 0:00:43]} 23. Qh4 {[%clk 0:00:57.5]} 23... Rg5 {[%clk
0:00:40.4]} 24. g3 {[%clk 0:00:48.6]} 24... Qg4 {[%clk 0:00:39]} 25. Qxg4 {[%clk
0:00:41.2]} 25... Rxg4 {[%clk 0:00:39.9]} 26. Ne3 {[%clk 0:00:41.5]} 26... fxe3
{[%clk 0:00:35.4]} 27. Rxg4 {[%clk 0:00:42.4]} 27... exf2+ {[%clk 0:00:33.6]}
28. Kxf2 {[%clk 0:00:42.3]} 28... Bb6+ {[%clk 0:00:33.8]} 29. Ke2 {[%clk
0:00:42.6]} 29... Bc5 {[%clk 0:00:31.5]} 30. Rf4 {[%clk 0:00:34.6]} 30... Ke7
{[%clk 0:00:29.9]} 31. Rdf1 {[%clk 0:00:32.9]} 31... Bd7 {[%clk 0:00:29.1]} 32.
Rxf6 {[%clk 0:00:31.6]} 32... Be6 {[%clk 0:00:29.5]} 33. b3 {[%clk 0:00:31.2]}
33... h5 {[%clk 0:00:29]} 34. R6f4 {[%clk 0:00:30.8]} 34... a5 {[%clk
0:00:28.1]} 35. Kd3 {[%clk 0:00:30.2]} 35... a4 {[%clk 0:00:24.9]} 36. Kc3
{[%clk 0:00:30.5]} 36... axb3 {[%clk 0:00:22.5]} 37. axb3 {[%clk 0:00:31.4]}
37... Ra8 {[%clk 0:00:22.3]} 38. Rh4 {[%clk 0:00:32]} 38... Ra3 {[%clk
0:00:19.5]} 39. Rxh5 {[%clk 0:00:24.5]} 39... b5 {[%clk 0:00:19.7]} 40. Kb2
{[%clk 0:00:24.8]} 40... b4 {[%clk 0:00:19.2]} 41. Rh4 {[%clk 0:00:23.1]} 41...
Ra8 {[%clk 0:00:15.3]} 42. Ra1 {[%clk 0:00:22.2]} 42... Rg8 {[%clk 0:00:15.2]}
43. Re1 {[%clk 0:00:20.4]} 43... Rg5 {[%clk 0:00:12.8]} 44. Re2 {[%clk
0:00:19.5]} 44... Rf5 {[%clk 0:00:13]} 45. Rf4 {[%clk 0:00:19.8]} 45... Rxf4
{[%clk 0:00:11.7]} 46. gxf4 {[%clk 0:00:20.7]} 46... Bd4+ {[%clk 0:00:12.3]} 47.
Kc2 {[%clk 0:00:19.9]} 47... Kf6 {[%clk 0:00:12.9]} 48. Kd3 {[%clk 0:00:18.1]}
48... Bc3 {[%clk 0:00:13.4]} 49. Ke4 {[%clk 0:00:18]} 49... Bg4 {[%clk
0:00:12.1]} 50. Rg2 {[%clk 0:00:17.6]} 50... Bh3 {[%clk 0:00:11.5]} 51. Rg3
{[%clk 0:00:17.2]} 51... Bf5+ {[%clk 0:00:10.9]} 52. Kd5 {[%clk 0:00:17.5]}
52... Ke7 {[%clk 0:00:11.5]} 53. Re3+ {[%clk 0:00:17.1]} 53... Kd7 {[%clk
0:00:11.5]} 54. Re2 {[%clk 0:00:16.9]} 54... Bd3 {[%clk 0:00:11.5]} 55. Rg2
{[%clk 0:00:16.8]} 55... Bb1 {[%clk 0:00:10.4]} 56. h4 {[%clk 0:00:15.5]} 56...
Bg6 {[%clk 0:00:09.5]} 57. Rh2 {[%clk 0:00:15.3]} 57... Bd3 {[%clk 0:00:08.3]}
58. h5 {[%clk 0:00:15.1]} 58... f5 {[%clk 0:00:08.9]} 59. c5 {[%clk 0:00:14.3]}
59... Be4+ {[%clk 0:00:07.4]} 60. Kc4 {[%clk 0:00:14.8]} 60... d5+ {[%clk
0:00:07.7]} 61. Kb5 {[%clk 0:00:15.2]} 61... d4 {[%clk 0:00:08.3]} 62. h6 {[%clk
0:00:15.7]} 62... d3 {[%clk 0:00:08.9]} 63. h7 {[%clk 0:00:14.7]} 63... d2
{[%clk 0:00:09.3]} 64. Rxd2+ {[%clk 0:00:15]} 64... Kc7 {[%clk 0:00:08.4]} 65.
Rd6 {[%clk 0:00:14.5]} 65... Bf3 {[%clk 0:00:06.1]} 66. Rh6 {[%clk 0:00:13.3]}
66... Be2+ {[%clk 0:00:06.5]} 67. Ka4 {[%clk 0:00:13.7]} 67... Kb7 {[%clk
0:00:05.6]} 68. h8=Q {[%clk 0:00:13.2]} 68... Bf3 {[%clk 0:00:05.2]} 69. Qh7+
{[%clk 0:00:12.3]} 1-0

[Event "Early-Titled-Tuesday-Blitz-March-12-2024"]
[Site "Chess.com"]
[Date "2024.03.12"]
[Round "8"]
[White "koncheto"]
[Black "Roman_Ovetchkin"]
[Result "1/2-1/2"]
[WhiteElo "2482"]
[BlackElo "2585"]
[TimeControl "180+1"]
[EndTime "9:28:02 PDT"]
[Termination "Game drawn by repetition"]

1. e4 {[%clk 0:03:00.9]} 1... c6 {[%clk 0:02:56.6]} 2. d4 {[%clk 0:03:01.1]}
2... d5 {[%clk 0:02:57.5]} 3. Nc3 {[%clk 0:03:01.9]} 3... dxe4 {[%clk
0:02:57.2]} 4. Nxe4 {[%clk 0:03:02.8]} 4... Nf6 {[%clk 0:02:57.4]} 5. Ng5 {[%clk
0:03:03.3]} 5... h6 {[%clk 0:02:56.6]} 6. Nxf7 {[%clk 0:03:03.8]} 6... Kxf7
{[%clk 0:02:57.3]} 7. Nf3 {[%clk 0:03:04.7]} 7... Bf5 {[%clk 0:02:49.7]} 8. Ne5+
{[%clk 0:02:51.8]} 8... Kg8 {[%clk 0:02:48]} 9. Bc4+ {[%clk 0:02:51.1]} 9... Nd5
{[%clk 0:02:45.2]} 10. Qh5 {[%clk 0:02:36.5]} 10... g6 {[%clk 0:02:16]} 11. Qe2
{[%clk 0:02:19.2]} 11... Nd7 {[%clk 0:01:55.9]} 12. Nd3 {[%clk 0:01:36.1]} 12...
Nf6 {[%clk 0:01:46.7]} 13. Ne5 {[%clk 0:01:31.6]} 13... Kg7 {[%clk 0:01:07]} 14.
g4 {[%clk 0:01:28.6]} 14... Bd7 {[%clk 0:01:06.8]} 15. g5 {[%clk 0:01:07.1]}
15... hxg5 {[%clk 0:01:06]} 16. Bxg5 {[%clk 0:01:08]} 16... Bf5 {[%clk
0:01:02.2]} 17. O-O-O {[%clk 0:00:56.7]} 17... Qd6 {[%clk 0:00:58.8]} 18. Rdg1
{[%clk 0:00:42.5]} 18... Ne4 {[%clk 0:00:47.3]} 19. h4 {[%clk 0:00:36.5]} 19...
Nxg5 {[%clk 0:00:37.3]} 20. Rxg5 {[%clk 0:00:37.4]} 20... Qf6 {[%clk 0:00:36.8]}
21. Rhg1 {[%clk 0:00:26]} 21... Rxh4 {[%clk 0:00:32.4]} 22. Qf3 {[%clk
0:00:02.8]} 22... Rf4 {[%clk 0:00:21.5]} 23. Qg3 {[%clk 0:00:01.9]} 23... Rxd4
{[%clk 0:00:12.8]} 24. Bd3 {[%clk 0:00:02.5]} 24... Rxd3 {[%clk 0:00:12.4]} 25.
Nxd3 {[%clk 0:00:03.4]} 25... e5 {[%clk 0:00:11]} 26. f4 {[%clk 0:00:03.2]}
26... exf4 {[%clk 0:00:10.5]} 27. Nxf4 {[%clk 0:00:03.3]} 27... Bd6 {[%clk
0:00:11.1]} 28. Nh5+ {[%clk 0:00:03.4]} 28... Kf7 {[%clk 0:00:11.3]} 29. Nxf6
{[%clk 0:00:03.5]} 29... Bxg3 {[%clk 0:00:12]} 30. Nxd5 {[%clk 0:00:04.1]} 30...
Be5 {[%clk 0:00:12]} 31. Re1 {[%clk 0:00:01.4]} 31... Bg7 {[%clk 0:00:10]} 32.
Ne3 {[%clk 0:00:01.7]} 32... Bh6 {[%clk 0:00:09.7]} 33. Rg3 {[%clk 0:00:02.1]}
33... Re8 {[%clk 0:00:08.6]} 34. Kb1 {[%clk 0:00:02.2]} 34... Bc8 {[%clk
0:00:07.4]} 35. Rf3+ {[%clk 0:00:02.1]} 35... Kg7 {[%clk 0:00:07.2]} 36. c3
{[%clk 0:00:02.5]} 36... Re5 {[%clk 0:00:06.9]} 37. Kc2 {[%clk 0:00:02.4]} 37...
Be6 {[%clk 0:00:06.1]} 38. Kd2 {[%clk 0:00:02.4]} 38... Bxa2 {[%clk 0:00:05.7]}
39. b3 {[%clk 0:00:01.9]} 39... Bxb3 {[%clk 0:00:05.4]} 40. Rb1 {[%clk
0:00:02.6]} 40... Bd5 {[%clk 0:00:03.8]} 41. Rxb7+ {[%clk 0:00:03.5]} 41... Kg8
{[%clk 0:00:03.8]} 42. Rh3 {[%clk 0:00:03.2]} 42... Bxe3+ {[%clk 0:00:02.2]} 43.
Rxe3 {[%clk 0:00:03]} 43... Rxe3 {[%clk 0:00:03.1]} 44. Kxe3 {[%clk 0:00:03.9]}
44... a5 {[%clk 0:00:03.5]} 45. Ra7 {[%clk 0:00:04.3]} 45... Kf8 {[%clk
0:00:02.5]} 46. Rxa5 {[%clk 0:00:04.5]} 46... g5 {[%clk 0:00:02.7]} 47. Ra7
{[%clk 0:00:03.8]} 47... g4 {[%clk 0:00:03]} 48. Kf4 {[%clk 0:00:04.5]} 48...
Bf3 {[%clk 0:00:03.3]} 49. c4 {[%clk 0:00:04.4]} 49... Ke8 {[%clk 0:00:03.6]}
50. c5 {[%clk 0:00:05.3]} 50... Kd8 {[%clk 0:00:04]} 51. Rg7 {[%clk 0:00:04.9]}
51... Ke8 {[%clk 0:00:04]} 52. Ke5 {[%clk 0:00:05.4]} 52... Kf8 {[%clk
0:00:04.4]} 53. Kf6 {[%clk 0:00:04.9]} 53... Ke8 {[%clk 0:00:04.8]} 54. Ke6
{[%clk 0:00:05]} 54... Bd5+ {[%clk 0:00:04.1]} 55. Kd6 {[%clk 0:00:04.2]} 55...
Bf3 {[%clk 0:00:04.8]} 56. Rg5 {[%clk 0:00:03.2]} 56... Kf7 {[%clk 0:00:04.8]}
57. Ke5 {[%clk 0:00:03.6]} 57... Be2 {[%clk 0:00:03.9]} 58. Rh5 {[%clk
0:00:02.6]} 58... Kg6 {[%clk 0:00:02]} 59. Rh1 {[%clk 0:00:01.4]} 59... Bf3
{[%clk 0:00:02.9]} 60. Rg1 {[%clk 0:00:01.3]} 60... Kg5 {[%clk 0:00:03.4]} 61.
Rg3 {[%clk 0:00:01.1]} 61... Bd5 {[%clk 0:00:03.5]} 62. Rg1 {[%clk 0:00:02]}
62... Bf3 {[%clk 0:00:02.1]} 63. Rg3 {[%clk 0:00:02.3]} 63... Bd5 {[%clk
0:00:01.9]} 64. Rg1 {[%clk 0:00:02.6]} 64... Bf3 {[%clk 0:00:02.4]} 1/2-1/2

[Event "Early-Titled-Tuesday-Blitz-March-12-2024"]
[Site "Chess.com"]
[Date "2024.03.12"]
[Round "8"]
[White "laziestwin"]
[Black "ccccvhhhj"]
[Result "0-1"]
[WhiteElo "2566"]
[BlackElo "2465"]
[TimeControl "180+1"]
[EndTime "9:28:09 PDT"]
[Termination "ccccvhhhj won by resignation"]

1. d4 {[%clk 0:03:00.9]} 1... e5 {[%clk 0:03:00.3]} 2. dxe5 {[%clk 0:02:56.6]}
2... d6 {[%clk 0:03:00.9]} 3. exd6 {[%clk 0:02:56.5]} 3... Bxd6 {[%clk
0:03:01.8]} 4. e4 {[%clk 0:02:54.5]} 4... Nc6 {[%clk 0:02:59.8]} 5. Be3 {[%clk
0:02:44.1]} 5... Qe7 {[%clk 0:02:59.6]} 6. Nd2 {[%clk 0:02:43.6]} 6... Nf6
{[%clk 0:02:57.8]} 7. Bd3 {[%clk 0:02:39.8]} 7... Bg4 {[%clk 0:02:52.7]} 8. f3
{[%clk 0:02:38.4]} 8... Bh5 {[%clk 0:02:49.7]} 9. Ne2 {[%clk 0:02:32.1]} 9...
O-O-O {[%clk 0:02:49.9]} 10. O-O {[%clk 0:02:24.2]} 10... h6 {[%clk 0:02:45.7]}
11. a3 {[%clk 0:02:20.6]} 11... g5 {[%clk 0:02:45.6]} 12. b4 {[%clk 0:02:19.9]}
12... Ne5 {[%clk 0:02:36.9]} 13. Ng3 {[%clk 0:02:15.3]} 13... Bg6 {[%clk
0:02:34.3]} 14. Qe2 {[%clk 0:02:09.1]} 14... Kb8 {[%clk 0:01:42.6]} 15. Nb3
{[%clk 0:01:30.1]} 15... Nxd3 {[%clk 0:01:13.2]} 16. cxd3 {[%clk 0:01:13]} 16...
Bxg3 {[%clk 0:01:00]} 17. hxg3 {[%clk 0:01:00.4]} 17... Nh5 {[%clk 0:01:00.5]}
18. Bf2 {[%clk 0:00:31.4]} 18... Qd6 {[%clk 0:00:59.7]} 19. Qe3 {[%clk
0:00:24.4]} 19... b6 {[%clk 0:00:58.3]} 20. Rfd1 {[%clk 0:00:18.2]} 20... Nxg3
{[%clk 0:00:52.7]} 21. e5 {[%clk 0:00:18.1]} 21... Qd5 {[%clk 0:00:46.9]} 22.
Bxg3 {[%clk 0:00:10.9]} 22... Qxb3 {[%clk 0:00:47.5]} 23. Rac1 {[%clk 0:00:06]}
23... Rxd3 {[%clk 0:00:45]} 24. Rxd3 {[%clk 0:00:05.8]} 24... Qxd3 {[%clk
0:00:45.9]} 25. Qxd3 {[%clk 0:00:04.4]} 25... Bxd3 {[%clk 0:00:46.8]} 26. e6
{[%clk 0:00:05]} 26... fxe6 {[%clk 0:00:41.8]} 27. Rxc7 {[%clk 0:00:04.8]} 27...
Ka8 {[%clk 0:00:42.5]} 28. Be5 {[%clk 0:00:04.2]} 28... Rd8 {[%clk 0:00:36.7]}
29. Re7 {[%clk 0:00:02.1]} 29... Bf5 {[%clk 0:00:36.9]} 30. g4 {[%clk
0:00:02.2]} 30... Bc2 {[%clk 0:00:33.9]} 31. Kf2 {[%clk 0:00:02.4]} 31... Bb3
{[%clk 0:00:32.4]} 32. Rh7 {[%clk 0:00:02.1]} 32... Rd2+ {[%clk 0:00:26]} 33.
Kg3 {[%clk 0:00:02.6]} 33... Bd5 {[%clk 0:00:25.7]} 34. b5 {[%clk 0:00:02.8]}
34... a6 {[%clk 0:00:22.2]} 35. bxa6 {[%clk 0:00:02.6]} 35... Rd3 {[%clk
0:00:19.7]} 36. Rf7 {[%clk 0:00:03.2]} 36... Rxa3 {[%clk 0:00:19]} 37. Rf6
{[%clk 0:00:02.8]} 37... Rxa6 {[%clk 0:00:19.4]} 38. Rxh6 {[%clk 0:00:03.2]}
38... Ra3 {[%clk 0:00:20.3]} 39. Rf6 {[%clk 0:00:03.6]} 39... b5 {[%clk
0:00:20.9]} 40. Kf2 {[%clk 0:00:03.9]} 40... b4 {[%clk 0:00:21.4]} 41. f4 {[%clk
0:00:04.6]} 41... b3 {[%clk 0:00:22.1]} 42. fxg5 {[%clk 0:00:04.4]} 42... Ra2+
{[%clk 0:00:22.3]} 43. Ke3 {[%clk 0:00:04]} 43... Rg2 {[%clk 0:00:20.1]} 44.
Rf8+ {[%clk 0:00:04.3]} 44... Kb7 {[%clk 0:00:19.9]} 45. Rb8+ {[%clk 0:00:02.4]}
45... Kc6 {[%clk 0:00:20.3]} 46. Rb4 {[%clk 0:00:03.2]} 46... Kc5 {[%clk
0:00:19]} 47. Rb8 {[%clk 0:00:03.8]} 47... Bc4 {[%clk 0:00:17.8]} 48. g6 {[%clk
0:00:03.6]} 48... Rxg4 {[%clk 0:00:16.6]} 49. g7 {[%clk 0:00:03.9]} 49... Kd5
{[%clk 0:00:17.2]} 50. Bf6 {[%clk 0:00:03.7]} 50... e5 {[%clk 0:00:16.7]} 51.
Rd8+ {[%clk 0:00:04.1]} 51... Kc5 {[%clk 0:00:15.9]} 52. Bxe5 {[%clk 0:00:03.9]}
52... Rg5 {[%clk 0:00:09.2]} 53. Rb8 {[%clk 0:00:03.7]} 53... Rxe5+ {[%clk
0:00:07.8]} 54. Kf4 {[%clk 0:00:04.5]} 54... Re1 {[%clk 0:00:07.5]} 55. g8=Q
{[%clk 0:00:03.9]} 55... Bxg8 {[%clk 0:00:07.2]} 56. Rxg8 {[%clk 0:00:04.5]}
56... Kc4 {[%clk 0:00:07.7]} 57. Rc8+ {[%clk 0:00:05.2]} 57... Kd3 {[%clk
0:00:07.9]} 58. Rd8+ {[%clk 0:00:05.2]} 58... Kc2 {[%clk 0:00:08.3]} 59. Rc8+
{[%clk 0:00:05.9]} 59... Kb1 {[%clk 0:00:08.5]} 60. Rb8 {[%clk 0:00:06.2]} 60...
b2 {[%clk 0:00:08.9]} 61. Kf3 {[%clk 0:00:07]} 61... Re5 {[%clk 0:00:08.9]} 62.
Kf4 {[%clk 0:00:06.9]} 62... Re1 {[%clk 0:00:08.3]} 63. Kf3 {[%clk 0:00:07.2]}
63... Kc1 {[%clk 0:00:07.1]} 64. Rc8+ {[%clk 0:00:07.6]} 64... Kb1 {[%clk
0:00:06.6]} 65. Kf2 {[%clk 0:00:06.8]} 65... Re6 {[%clk 0:00:06.3]} 66. Rb8
{[%clk 0:00:05.6]} 66... Ka2 {[%clk 0:00:06.2]} 67. Ra8+ {[%clk 0:00:05.8]}
67... Kb1 {[%clk 0:00:06.2]} 68. Rb8 {[%clk 0:00:06.3]} 68... Re5 {[%clk
0:00:06.8]} 69. Ra8 {[%clk 0:00:04.1]} 69... Kc2 {[%clk 0:00:06.8]} 70. Rc8+
{[%clk 0:00:04]} 70... Kb3 {[%clk 0:00:07.1]} 71. Rb8+ {[%clk 0:00:04.8]} 71...
Kc3 {[%clk 0:00:07.5]} 72. Rc8+ {[%clk 0:00:05.5]} 72... Kb4 {[%clk 0:00:08.2]}
73. Rb8+ {[%clk 0:00:06]} 73... Rb5 {[%clk 0:00:08.9]} 74. Re8 {[%clk
0:00:06.5]} 74... b1=Q {[%clk 0:00:09.2]} 0-1